fUST/lending_fUST_20240918
["ID","MTS","AMOUNT","RATE_DAILY","PERIOD"]
[338428075,1726631449622,-3148.48,0.00019178,2]
[338428076,1726631449632,-500.0,0.00019178,2]
[338428077,1726631449643,-881.47,0.00019178,2]
[338428078,1726631449652,-500.0,0.00019178,2]
[338428079,1726631449662,-20109.82,0.00019178,2]
[338428080,1726631449671,-829.37,0.00019178,2]
[338428081,1726631449680,-803.81,0.00019178,2]
[338428082,1726631449690,-500.0,0.00019178,2]
[338428083,1726631449700,-500.0,0.00019178,2]
[338428084,1726631449709,-500.0,0.00019178,2]
[338428085,1726631449719,-500.0,0.00019178,2]
[338428086,1726631449730,-602.88926032,0.00019178,2]
[338428087,1726631449739,-500.0,0.00019178,2]
[338428088,1726631449748,-500.0,0.00019178,2]
[338428089,1726631449757,-500.0,0.00019178,2]
[338428090,1726631449766,-500.0,0.00019178,2]
[338428091,1726631449777,-770.03,0.00019178,2]
[338428092,1726631449787,-500.0,0.00019178,2]
[338428093,1726631449797,-500.0,0.00019178,2]
[338428094,1726631449807,-2144.79,0.00019178,2]
[338428095,1726631449817,-500.0,0.00019178,2]
[338428096,1726631449826,-602.14,0.00019178,2]
[338428097,1726631449835,-500.0,0.00019178,2]
[338428098,1726631449846,-701.28,0.00019178,2]
[338428099,1726631449855,-500.0,0.00019178,2]
[338428100,1726631449864,-1007.27,0.00019178,2]
[338428101,1726631449874,-500.0,0.00019178,2]
[338428102,1726631449883,-743.37,0.00019178,2]
[338428103,1726631449892,-500.0,0.00019178,2]
[338428104,1726631449902,-993.83,0.00019178,2]
[338428105,1726631449914,-500.0,0.00019178,2]
[338428106,1726631449923,-500.0,0.00019178,2]
[338428107,1726631449934,-2563.31,0.00019178,2]
[338428108,1726631449943,-2771.79,0.00019178,2]
[338428109,1726631449952,-500.0,0.00019178,2]
[338428110,1726631449961,-4692.27,0.00019178,2]
[338428111,1726631449971,-500.0,0.00019178,2]
[338428112,1726631449980,-2690.53,0.00019178,2]
[338428113,1726631449990,-1365.09,0.00019178,2]
[338428114,1726631449999,-4575.52,0.00019178,2]
[338428115,1726631450008,-500.0,0.00019178,2]
[338428116,1726631450017,-1855.77,0.00019178,2]
[338428117,1726631450030,-500.0,0.00019178,2]
[338428118,1726631450039,-500.0,0.00019178,2]
[338428119,1726631450048,-500.0,0.00019178,2]
[338428120,1726631450057,-2412.55,0.00019178,2]
[338428121,1726631450067,-2323.83,0.00019178,2]
[338428122,1726631450076,-500.0,0.00019178,2]
[338428123,1726631450085,-610.51,0.00019178,2]
[338428124,1726631450097,-894.54,0.00019178,2]
[338428125,1726631450106,-1454.16,0.00019178,2]
[338428126,1726631450116,-391.88589512,0.00019178,2]
[338428127,1726631450126,-2103.67,0.00019178,2]
[338428128,1726631450274,-2064.81,0.00019178,2]
[338428129,1726631450292,-500.0,0.00019178,2]
[338428130,1726631450302,-176.78123077,0.00019178,2]
[338428131,1726631450312,-500.0,0.00019178,2]
[338428132,1726631450321,-500.0,0.00019178,2]
[338428133,1726631450331,-500.0,0.00019178,2]
[338428134,1726631450341,-2112.33,0.00019178,2]
[338428135,1726631450350,-2112.33,0.00019178,2]
[338428136,1726631450360,-778.06,0.00019178,2]
[338428137,1726631450369,-2112.33,0.00019178,2]
[338428138,1726631450379,-2112.33,0.00019178,2]
[338428139,1726631450389,-2112.33,0.00019178,2]
[338428140,1726631450399,-765.73,0.00019178,2]
[338428141,1726631450408,-2112.33,0.00019178,2]
[338428142,1726631450418,-2112.33,0.00019178,2]
[338428143,1726631450428,-2112.33,0.00019178,2]
[338428144,1726631450437,-2112.33,0.00019178,2]
[338428145,1726631450447,-2112.33,0.00019178,2]
[338428146,1726631450456,-2033.2,0.00019178,2]
[338428147,1726631450467,-2112.33,0.00019178,2]
[338428148,1726631450477,-500.0,0.00019178,2]
[338428149,1726631450487,-2112.33,0.00019178,2]
[338428150,1726631450498,-500.0,0.00019178,2]
[338428151,1726631450507,-2112.33,0.00019178,2]
[338428152,1726631450517,-2112.33,0.00019178,2]
[338428153,1726631450527,-2112.33,0.00019178,2]
[338428154,1726631450536,-2112.33,0.00019178,2]
[338428155,1726631450546,-2112.33,0.00019178,2]
[338428156,1726631450555,-171.086082,0.00019178,2]
[338428157,1726631450565,-2112.33,0.00019178,2]
[338428158,1726631450576,-1305.57,0.00019178,2]
[338428159,1726631450587,-2112.33,0.00019178,2]
[338428160,1726631450597,-1114.772845,0.00019178,2]
[338428161,1726631450607,-500.0,0.00019178,2]
[338428162,1726631450618,-171.086082,0.00019178,2]
[338428163,1726631450628,-500.0,0.00019178,2]
[338428164,1726631450639,-500.0,0.00019178,2]
[338428165,1726631450650,-1114.772845,0.00019178,2]
[338428166,1726631450661,-500.0,0.00019178,2]
[338428167,1726631450670,-500.0,0.00019178,2]
[338428168,1726631450680,-500.0,0.00019178,2]
[338428169,1726631450691,-536.19682184,0.00019178,2]
[338428170,1726631450701,-500.0,0.00019178,2]
[338428171,1726631450711,-2922.9,0.00019178,2]
[338428172,1726631450721,-2112.33,0.00019178,2]
[338428173,1726631450732,-171.086082,0.00019178,2]
[338428174,1726631450742,-500.0,0.00019178,2]
[338428175,1726631450752,-1114.772845,0.00019178,2]
[338428176,1726631450761,-2112.33,0.00019178,2]
[338428177,1726631450772,-2112.33,0.00019178,2]
[338428178,1726631450782,-171.086082,0.00019178,2]
[338428179,1726631450792,-1114.772845,0.00019178,2]
[338428180,1726631450802,-567.1,0.00019178,2]
[338428181,1726631450811,-2112.33,0.00019178,2]
[338428182,1726631450821,-2112.55552556,0.00019178,2]
[338428183,1726631450833,-186.797631,0.00019178,2]
[338428184,1726631450843,-500.0,0.00019178,2]
[338428185,1726631450853,-1370.99,0.00019178,2]
[338428186,1726631450863,-186.797631,0.00019178,2]
[338428187,1726631450873,-500.0,0.00019178,2]
[338428188,1726631450882,-500.0,0.00019178,2]
[338428189,1726631450893,-500.0,0.00019178,2]
[338428190,1726631450903,-500.0,0.00019178,2]
[338428191,1726631450912,-500.0,0.00019178,2]
[338428192,1726631450921,-500.0,0.00019178,2]
[338428193,1726631450931,-1163.05,0.00019178,2]
[338428194,1726631450940,-500.0,0.00019178,2]
[338428195,1726631450950,-500.0,0.00019178,2]
[338428196,1726631450960,-500.0,0.00019178,2]
[338428197,1726631450972,-500.0,0.00019178,2]
[338428198,1726631450981,-500.0,0.00019178,2]
[338428199,1726631450990,-186.797631,0.00019178,2]
[338428200,1726631451000,-2547.69,0.00019178,2]
[338428201,1726631451010,-500.0,0.00019178,2]
[338428202,1726631451021,-186.797631,0.00019178,2]
[338428203,1726631451032,-500.0,0.00019178,2]
[338428204,1726631451041,-500.0,0.00019178,2]
[338428205,1726631451051,-500.0,0.00019178,2]
[338428206,1726631451060,-500.0,0.00019178,2]
[338428207,1726631451070,-500.0,0.00019178,2]
[338428208,1726631451080,-500.0,0.00019178,2]
[338428209,1726631451090,-500.0,0.00019178,2]
[338428210,1726631451099,-500.0,0.00019178,2]
[338428211,1726631451108,-500.0,0.00019178,2]
[338428212,1726631451118,-500.0,0.00019178,2]
[338428213,1726631451128,-500.0,0.00019178,2]
[338428214,1726631451138,-500.0,0.00019178,2]
[338428215,1726631451148,-169.53195245,0.00019178,2]
[338428216,1726631451158,-565.01973332,0.00019178,2]
[338428217,1726631451168,-500.68225009,0.00019178,2]
[338428218,1726631451178,-500.0,0.00019178,2]
[338428219,1726631451188,-500.0,0.00019178,2]
[338428220,1726631451197,-825.33236,0.00019178,2]
[338428221,1726631451206,-836.94,0.00019178,2]
[338428222,1726631451216,-825.33236,0.00019178,2]
[338428223,1726631451226,-1466.59,0.00019178,2]
[338428224,1726631451235,-500.0,0.00019178,2]
[338428225,1726631451244,-500.0,0.00019178,2]
[338428226,1726631451254,-181.02839688,0.00019178,2]
[338428227,1726631451263,-500.0,0.00019178,2]
[338428228,1726631451272,-2478.98,0.00019178,2]
[338428229,1726631451282,-500.0,0.00019178,2]
[338428230,1726631451291,-825.33236,0.00019178,2]
[338428231,1726631451302,-503.92245172,0.00019178,2]
[338428232,1726631451311,-500.0,0.00019178,2]
[338428233,1726631451321,-825.33236,0.00019178,2]
[338428234,1726631451330,-500.0,0.00019178,2]
[338428235,1726631451340,-500.0,0.00019178,2]
[338428236,1726631451349,-502.26068259,0.00019178,2]
[338428237,1726631451358,-501.0258903,0.00019178,2]
[338428238,1726631451379,-771.53,0.00019178,2]
[338428239,1726631451388,-500.0,0.00019178,2]
[338428240,1726631451398,-1363.52,0.00019178,2]
[338428241,1726631451407,-500.0,0.00019178,2]
[338428242,1726631451417,-500.0,0.00019178,2]
[338428243,1726631451426,-500.0,0.00019178,2]
[338428244,1726631451435,-500.0,0.00019178,2]
[338428245,1726631451444,-589.68,0.00019178,2]
[338428246,1726631451455,-500.0,0.00019178,2]
[338428247,1726631451464,-2589.44,0.00019178,2]
[338428248,1726631451473,-500.0,0.00019178,2]
[338428249,1726631451482,-500.0,0.00019178,2]
[338428250,1726631451491,-500.0,0.00019178,2]
[338428251,1726631451501,-500.0,0.00019178,2]
[338428252,1726631451510,-500.0,0.00019178,2]
[338428253,1726631451519,-866.34,0.00019178,2]
[338428254,1726631451528,-500.0,0.00019178,2]
[338428255,1726631451537,-500.0,0.00019178,2]
[338428256,1726631451546,-236.050615,0.00019178,2]
[338428257,1726631451556,-500.0,0.00019178,2]
[338428258,1726631451566,-500.0,0.00019178,2]
[338428259,1726631451575,-236.050615,0.00019178,2]
[338428260,1726631451585,-3675.2,0.00019178,2]
[338428261,1726631451595,-1426.45,0.00019178,2]
[338428262,1726631451604,-567.12,0.00019178,2]
[338428263,1726631451614,-1323.65,0.00019178,2]
[338428264,1726631451623,-949.94,0.00019178,2]
[338428265,1726631451633,-500.0,0.00019178,2]
[338428266,1726631451642,-502.92885781,0.00019178,2]
[338428267,1726631451651,-236.050615,0.00019178,2]
[338428268,1726631451660,-236.050615,0.00019178,2]
[338428269,1726631451671,-500.0,0.00019178,2]
[338428270,1726631451681,-819.61,0.00019178,2]
[338428271,1726631451690,-976.1,0.00019178,2]
[338428272,1726631451700,-500.0,0.00019178,2]
[338428273,1726631451709,-200.0,0.00019178,2]
[338428274,1726631451718,-500.0,0.00019178,2]
[338428275,1726631451728,-500.0,0.00019178,2]
[338428276,1726631451738,-500.0,0.00019178,2]
[338428277,1726631451747,-500.0,0.00019178,2]
[338428278,1726631451757,-2145.2,0.00019178,2]
[338428279,1726631451767,-858.06,0.00019178,2]
[338428280,1726631451776,-579.51,0.00019178,2]
[338428281,1726631451785,-2306.81,0.00019178,2]
[338428282,1726631451796,-500.0,0.00019178,2]
[338428283,1726631451806,-500.0,0.00019178,2]
[338428284,1726631451815,-151.0,0.00019178,2]
[338428285,1726631451826,-1879.22,0.00019178,2]
[338428286,1726631451835,-782.26,0.00019178,2]
[338428287,1726631451844,-716.86,0.00019178,2]
[338428288,1726631451854,-563.08978909,0.00019178,2]
[338428289,1726631451863,-509.80509317,0.00019178,2]
[338428290,1726631451872,-500.0,0.00019178,2]
[338428291,1726631451880,-985.63,0.00019178,2]
[338428292,1726631451891,-500.0,0.00019178,2]
[338428293,1726631451901,-500.0,0.00019178,2]
[338428294,1726631451910,-296.28077995,0.00019178,2]
[338428295,1726631451923,-500.0,0.00019178,2]
[338428296,1726631451932,-1063.76,0.00019178,2]
[338428297,1726631451942,-500.0,0.00019178,2]
[338428298,1726631451951,-610.92049014,0.00019178,2]
[338428299,1726631451960,-626.87,0.00019178,2]
[338428300,1726631451970,-1668.89,0.00019178,2]
[338428301,1726631451980,-1668.89,0.00019178,2]
[338428302,1726631451989,-1668.89,0.00019178,2]
[338428303,1726631451998,-765.58,0.00019178,2]
[338428304,1726631452007,-1668.89,0.00019178,2]
[338428305,1726631452017,-532.45933118,0.00019178,2]
[338428306,1726631452029,-1668.89,0.00019178,2]
[338428307,1726631452040,-501.04744739,0.00019178,2]
[338428308,1726631452049,-1668.89,0.00019178,2]
[338428309,1726631452059,-622.45,0.00019178,2]
[338428310,1726631452068,-1668.89,0.00019178,2]
[338428311,1726631452077,-1668.89,0.00019178,2]
[338428312,1726631452086,-1668.89,0.00019178,2]
[338428313,1726631452096,-500.0,0.00019178,2]
[338428314,1726631452105,-1668.89,0.00019178,2]
[338428315,1726631452116,-1668.89,0.00019178,2]
[338428316,1726631452126,-1668.89,0.00019178,2]
[338428317,1726631452135,-1668.89,0.00019178,2]
[338428318,1726631452144,-500.0,0.00019178,2]
[338428319,1726631452154,-1668.89,0.00019178,2]
[338428320,1726631452163,-1668.89,0.00019178,2]
[338428321,1726631452174,-1668.89,0.00019178,2]
[338428322,1726631452183,-1668.89,0.00019178,2]
[338428323,1726631452191,-1668.89,0.00019178,2]
[338428324,1726631452200,-1668.89,0.00019178,2]
[338428325,1726631452210,-522.21529011,0.00019178,2]
[338428326,1726631452220,-1668.89,0.00019178,2]
[338428327,1726631452231,-1668.89,0.00019178,2]
[338428328,1726631452240,-1668.89,0.00019178,2]
[338428329,1726631452249,-502.42661494,0.00019178,2]
[338428330,1726631452259,-1668.89,0.00019178,2]
[338428331,1726631452269,-500.0,0.00019178,2]
[338428332,1726631452278,-1669.07536857,0.00019178,2]
[338428333,1726631452288,-151.597584,0.00019178,2]
[338428334,1726631452297,-500.0,0.00019178,2]
[338428335,1726631452306,-548.11545847,0.00019178,2]
[338428336,1726631452316,-1095.75,0.00019178,2]
[338428337,1726631452326,-551.4,0.00019178,2]
[338428338,1726631452335,-2511.81,0.00019178,2]
[338428339,1726631452347,-2443.0,0.00019178,2]
[338428340,1726631452364,-500.0,0.00019178,2]
[338428341,1726631452373,-500.0,0.00019178,2]
[338428342,1726631452382,-702.99,0.00019178,2]
[338428343,1726631452391,-151.597584,0.00019178,2]
[338428344,1726631452400,-2706.18,0.00019178,2]
[338428345,1726631452409,-500.0,0.00019178,2]
[338428346,1726631452419,-1295.28,0.00019178,2]
[338428347,1726631452428,-4417.02,0.00019178,2]
[338428348,1726631452437,-1871.85,0.00019178,2]
[338428349,1726631452447,-500.0,0.00019178,2]
[338428350,1726631452456,-1996.11,0.00019178,2]
[338428351,1726631452465,-53303.65,0.00019178,2]
[338428352,1726631452475,-681.31,0.00019178,2]
[338428353,1726631452484,-500.0,0.00019178,2]
[338428354,1726631452494,-500.0,0.00019178,2]
[338428355,1726631452503,-703.2,0.00019178,2]
[338428356,1726631452513,-500.73140609,0.00019178,2]
[338428357,1726631452522,-500.0,0.00019178,2]
[338428358,1726631452533,-500.0,0.00019178,2]
[338428359,1726631452542,-500.0,0.00019178,2]
[338428360,1726631452551,-500.0,0.00019178,2]
[338428361,1726631452560,-1243.87,0.00019178,2]
[338428362,1726631452569,-500.0,0.00019178,2]
[338428363,1726631452578,-500.71233452,0.00019178,2]
[338428364,1726631452587,-506.91216179,0.00019178,2]
[338428365,1726631452601,-500.0,0.00019178,2]
[338428366,1726631452611,-202.51131607,0.00019178,2]
[338428367,1726631452620,-500.0,0.00019178,2]
[338428368,1726631452629,-500.0,0.00019178,2]
[338428369,1726631452638,-538.67894368,0.00019178,2]
[338428370,1726631452647,-507.54994266,0.00019178,2]
[338428371,1726631452658,-151.0,0.00019178,2]
[338428372,1726631452667,-500.0,0.00019178,2]
[338428373,1726631452676,-500.0,0.00019178,2]
[338428374,1726631452686,-500.0,0.00019178,2]
[338428375,1726631452695,-2596.4,0.00019178,2]
[338428376,1726631452704,-2504.1,0.00019178,2]
[338428377,1726631452714,-1480.75,0.00019178,2]
[338428378,1726631452723,-151.0,0.00019178,2]
[338428379,1726631452732,-501.35,0.00019178,2]
[338428380,1726631452741,-500.0,0.00019178,2]
[338428381,1726631452751,-581.23,0.00019178,2]
[338428382,1726631452760,-10328.85,0.00019178,2]
[338428383,1726631452769,-500.0,0.00019178,2]
[338428384,1726631452779,-500.0,0.00019178,2]
[338428385,1726631452788,-500.0,0.00019178,2]
[338428386,1726631452797,-500.0,0.00019178,2]
[338428387,1726631452807,-12411.55,0.00019178,2]
[338428388,1726631452817,-500.0,0.00019178,2]
[338428389,1726631452826,-500.0,0.00019178,2]
[338428390,1726631452835,-648.06289456,0.00019178,2]
[338428391,1726631452984,-500.0,0.00019178,2]
[338428392,1726631452995,-500.37505608,0.00019178,2]
[338428393,1726631453004,-500.0,0.00019178,2]
[338428394,1726631453013,-605.58,0.00019178,2]
[338428395,1726631453025,-500.0,0.00019178,2]
[338428396,1726631453034,-500.0,0.00019178,2]
[338428397,1726631453043,-500.0,0.00019178,2]
[338428398,1726631453052,-723.68,0.00019178,2]
[338428399,1726631453061,-500.0,0.00019178,2]
[338428400,1726631453070,-770.39,0.00019178,2]
[338428401,1726631453080,-714.57,0.00019178,2]
[338428402,1726631453090,-500.0,0.00019178,2]
[338428403,1726631453100,-2713.95,0.00019178,2]
[338428404,1726631453109,-500.0,0.00019178,2]
[338428405,1726631453118,-500.0,0.00019178,2]
[338428406,1726631453129,-500.0,0.00019178,2]
[338428407,1726631453139,-500.0,0.00019178,2]
[338428408,1726631453148,-309.0,0.00019178,2]
[338428409,1726631453158,-163.611583,0.00019178,2]
[338428410,1726631453167,-166.66766,0.00019178,2]
[338428411,1726631453176,-151.0,0.00019178,2]
[338428412,1726631453186,-151.0,0.00019178,2]
[338428413,1726631453195,-151.0,0.00019178,2]
[338428414,1726631453204,-151.0,0.00019178,2]
[338428415,1726631453215,-151.0,0.00019178,2]
[338428416,1726631453225,-151.0,0.00019178,2]
[338428417,1726631453234,-153.0,0.00019178,2]
[338428418,1726631453245,-153.0,0.00019178,2]
[338428419,1726631453254,-153.0,0.00019178,2]
[338428420,1726631453268,-21204.43,0.000192,2]
[338428421,1726631453278,-44662.21,0.000192,2]
[338428422,1726631453288,-4030.85,0.000192,2]
[338428423,1726631453297,-150.112233,0.000192,2]
[338428424,1726631453307,-150.112233,0.000192,2]
[338428425,1726631453318,-150.112233,0.000192,2]
[338428426,1726631453328,-150.112233,0.000192,2]
[338428427,1726631453339,-150.112233,0.000192,2]
[338428428,1726631453350,-150.112233,0.000192,2]
[338428429,1726631453360,-314262.69,0.000192,2]
[338428430,1726631453371,-1200.85,0.000192,2]
[338428431,1726631453380,-151.0,0.000192,2]
[338428432,1726631453390,-151.0,0.000192,2]
[338428433,1726631453399,-151.0,0.000192,2]
[338428434,1726631453411,-151.0,0.000192,2]
[338428435,1726631453420,-151.0,0.000192,2]
[338428436,1726631453430,-151.0,0.000192,2]
[338428437,1726631453440,-151.0,0.000192,2]
[338428438,1726631453451,-151.0,0.000192,2]
[338428439,1726631453460,-151.0,0.000192,2]
[338428440,1726631453470,-151.0,0.000192,2]
[338428441,1726631453479,-166.642268,0.000192,2]
[338428442,1726631453489,-166.642268,0.000192,2]
[338428443,1726631453498,-180.178352,0.000192,2]
[338428444,1726631453508,-180.178352,0.000192,2]
[338428445,1726631453517,-151.0,0.000192,2]
[338428446,1726631453528,-151.0,0.000192,2]
[338428447,1726631453537,-171.086082,0.000192,2]
[338428448,1726631453551,-1114.772845,0.000192,2]
[338428449,1726631453562,-1114.772845,0.000192,2]
[338428450,1726631453573,-171.086082,0.000192,2]
[338428451,1726631453584,-186.797631,0.000192,2]
[338428452,1726631453594,-186.797631,0.000192,2]
[338428453,1726631453604,-825.33236,0.000192,2]
[338428454,1726631453615,-825.33236,0.000192,2]
[338428455,1726631453625,-151.0,0.000192,2]
[338428456,1726631453635,-236.050615,0.000192,2]
[338428457,1726631453645,-236.050615,0.000192,2]
[338428458,1726631453655,-213.346863,0.000192,2]
[338428459,1726631453665,-151.597584,0.000192,2]
[338428460,1726631453675,-151.597584,0.000192,2]
[338428461,1726631453684,-151.597584,0.000192,2]
[338428462,1726631453696,-4000.0,0.000192,2]
[338428463,1726631453705,-151.597584,0.000192,2]
[338428464,1726631453715,-4000.0,0.000192,2]
[338428465,1726631453726,-2084.780151,0.000192,2]
[338428466,1726631453739,-151.0,0.000192,2]
[338428467,1726631453751,-151.0,0.000192,2]
[338428468,1726631453762,-151.0,0.000192,2]
[338428469,1726631453774,-151.0,0.000192,2]
[338428470,1726631453786,-420.0,0.00019279,2]
[338428471,1726631453797,-420.0,0.0001943,2]
[338428472,1726631453806,-1465.12116756,0.00019452,5]
[338428473,1726631453817,-504.33902781,0.00019452,2]
[338428474,1726631453827,-1000.0,0.00019452,2]
[338428475,1726631453836,-500.0,0.00019452,2]
[338428476,1726631453848,-500.0,0.00019452,2]
[338428477,1726631453861,-500.0,0.00019452,2]
[338428478,1726631453873,-500.0,0.00019452,2]
[338428479,1726631453884,-1000.0,0.00019452,2]
[338428480,1726631453895,-500.0,0.00019452,2]
[338428481,1726631453905,-500.0,0.00019452,2]
[338428482,1726631453917,-571.36,0.00019452,2]
[338428483,1726631453927,-500.0,0.00019452,2]
[338428484,1726631453940,-1005.44,0.00019452,2]
[338428485,1726631453951,-500.0,0.00019452,2]
[338428486,1726631453960,-500.0,0.00019452,2]
[338428487,1726631453969,-500.0,0.00019452,2]
[338428488,1726631453978,-1175.13,0.00019452,2]
[338428489,1726631453988,-500.0,0.00019452,2]
[338428490,1726631453997,-858.24,0.00019452,2]
[338428491,1726631454006,-500.0,0.00019452,2]
[338428492,1726631454016,-151.0,0.00019452,2]
[338428493,1726631454027,-151.0,0.00019452,2]
[338428494,1726631454036,-1574.34,0.00019452,2]
[338428495,1726631454047,-500.0,0.00019452,2]
[338428496,1726631454058,-666.53,0.00019452,2]
[338428497,1726631454069,-500.0,0.00019452,2]
[338428498,1726631454079,-500.0,0.00019452,2]
[338428499,1726631454088,-500.0,0.00019452,2]
[338428500,1726631454100,-455.29247255,0.00019452,2]
[338428501,1726631454110,-2819.27,0.00019452,2]
[338428502,1726631454121,-793.5,0.00019452,2]
[338428503,1726631454131,-500.0,0.00019452,2]
[338428504,1726631454140,-500.0,0.00019452,2]
[338428505,1726631454149,-500.0,0.00019452,2]
[338428506,1726631454159,-896.99,0.00019452,2]
[338428507,1726631454169,-500.0,0.00019452,2]
[338428508,1726631454181,-500.0,0.00019452,2]
[338428509,1726631454193,-500.0,0.00019452,2]
[338428510,1726631454203,-500.0,0.00019452,2]
[338428511,1726631454215,-500.0,0.00019452,2]
[338428512,1726631454225,-500.0,0.00019452,2]
[338428513,1726631454234,-700.07,0.00019452,2]
[338428514,1726631454246,-500.0,0.00019452,2]
[338428515,1726631454258,-500.0,0.00019452,2]
[338428516,1726631454269,-500.0,0.00019452,2]
[338428517,1726631454280,-500.0,0.00019452,2]
[338428518,1726631454293,-990.25,0.00019452,2]
[338428519,1726631454305,-500.0,0.00019452,2]
[338428520,1726631454314,-500.0,0.00019452,2]
[338428521,1726631454324,-537.83788357,0.00019452,2]
[338428522,1726631454335,-500.0,0.00019452,2]
[338428523,1726631454347,-500.0,0.00019452,2]
[338428524,1726631454360,-500.0,0.00019452,2]
[338428525,1726631454372,-821.6,0.00019452,2]
[338428526,1726631454383,-916.48,0.00019452,2]
[338428527,1726631454393,-557.66,0.00019452,2]
[338428528,1726631454404,-500.0,0.00019452,2]
[338428529,1726631454415,-500.0,0.00019452,2]
[338428530,1726631454426,-500.0,0.00019452,2]
[338428531,1726631454437,-1501.15,0.00019452,2]
[338428532,1726631454448,-500.0,0.00019452,2]
[338428533,1726631454459,-500.0,0.00019452,2]
[338428534,1726631454469,-522.57433762,0.00019452,2]
[338428535,1726631454480,-500.0,0.00019452,2]
[338428536,1726631454489,-500.0,0.00019452,2]
[338428537,1726631454499,-1937.63,0.00019452,2]
[338428538,1726631454511,-500.0,0.00019452,2]
[338428539,1726631454521,-523.67661019,0.00019452,2]
[338428540,1726631454531,-500.0,0.00019452,2]
[338428541,1726631454544,-500.0,0.00019452,2]
[338428542,1726631454558,-500.0,0.00019452,2]
[338428543,1726631454570,-500.0,0.00019452,2]
[338428544,1726631454581,-1069.89,0.00019452,2]
[338428545,1726631454593,-500.0,0.00019452,2]
[338428546,1726631454603,-522.15,0.00019452,2]
[338428547,1726631454613,-500.0,0.00019452,2]
[338428548,1726631454625,-500.0,0.00019452,2]
[338428549,1726631454637,-500.0,0.00019452,2]
[338428550,1726631454646,-524.31,0.00019452,2]
[338428551,1726631454657,-500.0,0.00019452,2]
[338428552,1726631454667,-512.16347041,0.00019452,2]
[338428553,1726631454678,-500.0,0.00019452,2]
[338428554,1726631454689,-500.0,0.00019452,2]
[338428555,1726631454700,-500.0,0.00019452,2]
[338428556,1726631454710,-500.0,0.00019452,2]
[338428557,1726631454720,-511.81,0.00019452,2]
[338428558,1726631454731,-500.0,0.00019452,2]
[338428559,1726631454741,-250.0,0.00019452,2]
[338428560,1726631454753,-572.91,0.00019452,2]
[338428561,1726631454763,-500.0,0.00019452,2]
[338428562,1726631454774,-500.0,0.00019452,2]
[338428563,1726631454785,-500.0,0.00019452,2]
[338428564,1726631454794,-500.0,0.00019452,2]
[338428565,1726631454804,-359.07824657,0.00019452,2]
[338428566,1726631454814,-786.31,0.00019452,2]
[338428567,1726631454825,-345.86,0.00019452,2]
[338428568,1726631454835,-500.0,0.00019452,2]
[338428569,1726631454845,-795.29,0.00019452,2]
[338428570,1726631454854,-500.0,0.00019452,2]
[338428571,1726631454863,-151.0,0.00019452,2]
[338428572,1726631454873,-151.0,0.00019452,2]
[338428573,1726631454884,-500.0,0.00019452,2]
[338428574,1726631454893,-572.47,0.00019452,2]